fUSD/lending_fUSD_20251014
["ID","MTS","AMOUNT","RATE_DAILY","PERIOD"]
[391251133,1760433046457,-6581.81634828,0.00024233,2]
[391251135,1760433046466,-260.05806081,0.00024233,2]
[391251137,1760433046475,-150.0,0.00024288,2]
[391251140,1760433046486,-150.0,0.00024288,2]
[391251142,1760433046495,-152.73589895,0.00024288,2]
[391251144,1760433046504,-479.27,0.00024356,2]
[391251146,1760433046513,-168.0,0.000244,2]
[391251148,1760433046522,-168.0,0.00024558,2]
[391251150,1760433046531,-290.0,0.00024632,2]
[391251152,1760433046540,-1024.773,0.00024636,7]
[391251154,1760433046549,-168.0,0.00024642,2]
[391251155,1760433046559,-1000.0,0.00024658,2]
[391251158,1760433046568,-1809.47,0.00024658,30]
[391251160,1760433046577,-1194.7,0.000247,7]
[391251161,1760433046586,-168.0,0.00024704,2]
[391251164,1760433046595,-168.0,0.00024722,2]
[391251166,1760433046604,-152.0,0.00024786,3]
[391251167,1760433046614,-168.0,0.00024787,2]
[391251169,1760433046623,-20000.0,0.0002479,2]
[391251171,1760433046632,-3000.0,0.00024798,2]
[391251173,1760433046641,-235737.878773,0.000248,2]
[391251175,1760433046650,-500.0,0.00024885,2]
[391251177,1760433046661,-516.12287274,0.00024885,2]
[391251179,1760433046670,-500.0,0.00024885,2]
[391251181,1760433046680,-127.84891062,0.00024885,2]
[391251185,1760433046708,-70.93504252,0.00024885,2]
[391251187,1760433046718,-500.0,0.00024885,2]
[391251189,1760433046727,-500.0,0.00024885,2]
[391251191,1760433046737,-500.0,0.00024885,2]
[391251193,1760433046747,-624.23906151,0.00024885,2]
[391251195,1760433046755,-71930.0076536,0.000249,2]
[391251231,1760433047202,-151.0,0.00016204,2]
[391251232,1760433047211,-126.1515,0.00016934,2]
[391251233,1760433047226,-180.896595,0.00016934,2]
[391251234,1760433047235,-151.0,0.00016934,2]
[391251235,1760433047244,-307.048095,0.00016934,2]
[391251236,1760433047254,-307.048095,0.00017567,2]
[391251237,1760433047263,-151.0,0.00017567,2]
[391251238,1760433047273,-307.048095,0.00017567,2]
[391251239,1760433047283,-307.048095,0.00018999,2]
[391251240,1760433047292,-151.0,0.00018999,2]
[391251241,1760433047301,-307.048095,0.00018999,2]
[391251242,1760433047310,-307.048095,0.00019,2]
[391251243,1760433047319,-151.0,0.00019,2]
[391251244,1760433047335,-307.048095,0.00019,2]
[391251245,1760433047344,-307.048095,0.00019726,7]
[391251246,1760433047353,-278.908434,0.00019726,2]
[391251247,1760433047362,-901.0,0.00022642,2]
[391251248,1760433047372,-9032.28947255,0.000249,2]
[391251249,1760433047442,-307.048095,0.00019726,7]
[391251250,1760433047451,-347.297102,0.000249,2]
[391251251,1760433047462,-1567.08137079,0.000249,2]
[391251264,1760433048350,-307.048095,0.00016934,2]
[391251265,1760433048359,-187.56962379,0.00017567,2]
[391251266,1760433048374,-119.47847121,0.00017567,2]
[391251267,1760433048384,-307.048095,0.00018999,2]
[391251268,1760433048393,-307.048095,0.00019,2]
[391251269,1760433048403,-307.048102,0.00019726,7]
[391251270,1760433048412,-8315.33735636,0.000249,2]
[391251360,1760433313007,163.0,0.0002259,120]
[391251361,1760433314205,163.0,0.00023719,120]
[391251362,1760433315502,163.0,0.00024905,120]
[391251363,1760433316817,163.0,0.0002615,120]
[391251364,1760433330908,529.74,0.00027397,120]
[391251372,1760433609979,164.0,0.00025195,120]
[391251373,1760433611268,164.0,0.00026455,120]
[391251388,1760434013530,307.7,0.0002739,120]
[391251393,1760434128813,-306.52,0.00013699,2]
[391251394,1760434128835,-2007.92146189,0.00013699,2]
[391251396,1760434169051,200.0,0.00027397,120]
[391251411,1760434232406,-1181.54655407,0.00013699,2]
[391251412,1760434232417,-1085.09234464,0.00013699,2]
[391251413,1760434232426,-1000.0,0.000149,2]
[391251414,1760434232435,-1200.0,0.00016199,2]
[391251415,1760434232444,-2430.63083125,0.000162,5]
[391251416,1760434232456,-334.33830891,0.000162,5]
[391251417,1760434232491,-1090.0,0.000162,5]
[391251418,1760434232502,-275.59827189,0.000162,5]
[391251419,1760434232545,-1949.36997113,0.000162,5]
[391251429,1760434238384,-1447.4249,0.000162,5]
[391251430,1760434238396,-72.45274524,0.000162,5]
[391251431,1760434238405,-5441.54725476,0.00018,2]
[391251432,1760434238492,-68.99372898,0.00018,2]
[391251433,1760434238502,-150.0,0.00018568,2]
[391251434,1760434238511,-116.13561342,0.00018659,2]
[391251435,1760434238546,-177.86438658,0.00018659,2]
[391251436,1760434238555,-195.0,0.00018696,2]
[391251437,1760434238565,-246.57,0.00018709,2]
[391251438,1760434238574,-163.79377323,0.00018734,2]
[391251439,1760434238590,-332.20622677,0.00018734,2]
[391251440,1760434238600,-2295.52225138,0.00019,2]
[391251441,1760434238611,-914.5369327,0.00019,2]
[391251442,1760434238620,-208.12959488,0.00019111,2]
[391251445,1760434240342,-92.87040512,0.00019111,2]
[391251446,1760434240351,-955.59941189,0.00019149,2]
[391251447,1760434240362,-375.40058811,0.00019149,2]
[391251448,1760434240372,-938.0,0.00019187,2]
[391251449,1760434240381,-113.50360328,0.00019226,2]
[391251450,1760434240399,-1120.9198,0.00019226,2]
[391251451,1760434240504,-348.57659672,0.00019226,2]
[391251452,1760434240513,-1459.0,0.00019264,2]
[391251453,1760434240523,-1268.0,0.00019302,2]
[391251454,1760434240532,-1733.0,0.0001934,2]
[391251455,1760434240541,-457.0,0.00019378,2]
[391251456,1760434240550,-1719.0,0.00019416,2]
[391251457,1760434240559,-1617.0,0.00019454,2]
[391251458,1760434240568,-718.0,0.00019493,2]
[391251459,1760434240577,-462.0,0.00019531,2]
[391251460,1760434240586,-1898.0,0.00019569,2]
[391251461,1760434240595,-1977.0,0.00019607,2]
[391251462,1760434240604,-666.0,0.00019645,2]
[391251463,1760434240613,-1110.0,0.00019683,2]
[391251464,1760434240622,-1717.0,0.00019721,2]
[391251465,1760434240631,-201.02373801,0.00019849,2]
[391251466,1760434240641,-282.41245709,0.00019927,2]
[391251467,1760434240650,-1099.79467118,0.00019927,2]
[391251468,1760434240660,-210.29,0.0001994,2]
[391251469,1760434240669,-151.0,0.00019947,2]
[391251470,1760434240679,-314.014,0.00019949,2]
[391251471,1760434240688,-195345.60069556,0.0001995,15]
[391251472,1760434240697,-500.0,0.00019973,2]
[391251473,1760434240707,-354.47954189,0.00019973,2]
[391251474,1760434240716,-500.0,0.00019973,2]
[391251475,1760434240726,-500.0,0.00019973,2]
[391251476,1760434240735,-200.0,0.00019973,2]
[391251477,1760434240744,-399.0,0.00019987,2]
[391251478,1760434240753,-210.29,0.0001999,2]
[391251479,1760434240762,-210.29,0.0001999,2]
[391251480,1760434240772,-210.29,0.0001999,2]
[391251481,1760434240781,-210.29,0.0001999,2]
[391251482,1760434240790,-500.0,0.00019999,2]
[391251483,1760434240799,-229.57150591,0.00019999,2]
[391251484,1760434240809,-235.98695258,0.00019999,2]
[391251485,1760434240818,-179.61892405,0.00019999,2]
[391251486,1760434240827,-427.43783511,0.00019999,2]
[391251487,1760434240836,-327710.54993809,0.0002,5]
[391251488,1760434240868,-374.07477111,0.0002,5]
[391251491,1760434243564,-1977.12925789,0.00019873,2]
[391251492,1760434243586,-2800.4989974,0.00019873,2]
[391251493,1760434243598,-497.53,0.00019873,2]
[391251494,1760434243612,-2295.68719251,0.00019873,2]
[391251495,1760434243623,-21886.37574103,0.0002,5]
[391251496,1760434243633,-372.0,0.00020027,2]
[391251497,1760434243646,-224.0,0.00020067,2]
[391251498,1760434243655,-178.0,0.00020107,2]
[391251499,1760434243665,-189.0,0.00020146,2]
[391251500,1760434243674,-243.0,0.00020186,2]
[391251501,1760434243684,-306.52,0.00020187,2]
[391251502,1760434243693,-415.0,0.00020226,2]
[391251503,1760434243703,-293.0,0.00020266,2]
[391251504,1760434243713,-396.0,0.00020306,2]
[391251505,1760434243722,-400.0,0.00020521,2]
[391251506,1760434243731,-166.66,0.0002058,2]
[391251507,1760434243741,-282.41245705,0.00020702,2]
[391251508,1760434243750,-1099.79467116,0.00020923,2]
[391251509,1760434243759,-500.0,0.00021,2]
[391251510,1760434243768,-316.53183403,0.00021,2]
[391251512,1760434243778,-500.59683785,0.00021,2]
[391251514,1760434243787,-500.0,0.00021,2]
[391251515,1760434243796,-501.49056779,0.00021,2]
[391251516,1760434243806,-166.66,0.00021013,2]
[391251517,1760434243815,-9999.99,0.00021013,2]
[391251518,1760434243824,-3435.35377782,0.00021314,2]
[391251519,1760434243834,-166.66,0.00021446,2]
[391251520,1760434243843,-282.41245705,0.00021477,2]
[391251521,1760434243852,-475.40571922,0.00021489,2]
[391251522,1760434243862,-2375.93705597,0.00021602,4]
[391251523,1760434243896,-14420.22294403,0.00021602,4]
[391251524,1760434243906,-11923.18493597,0.00021667,4]
[391251525,1760434243918,-395.91643799,0.00021667,4]
[391251534,1760434246303,-1653.64125289,0.00020654,2]
[391251535,1760434246410,-2330.44411578,0.00020654,2]
[391251536,1760434246466,-3586.76007911,0.00020654,2]
[391251537,1760434246475,-12294.00139681,0.00021667,4]
[391251538,1760434246524,-386.89722923,0.00021667,4]
[391251539,1760434246534,-166.66,0.00021879,2]
[391251540,1760434246544,-19494.46437077,0.00022,4]
[391251579,1760434503554,3771.15,0.00027397,120]
[391251580,1760434506129,163.0,0.00020709,120]
[391251581,1760434803316,163.0,0.0002077,120]
[391251582,1760434804616,163.0,0.00021809,120]
[391251583,1760434805933,163.0,0.00022899,120]
[391251591,1760435042128,1121.39,0.00026615,120]
[391251601,1760435308840,216.6,0.00010362,2]
[391251602,1760435309004,216.6,0.00010907,2]
[391251603,1760435309056,216.6,0.00011452,2]
[391251604,1760435309104,216.6,0.00011998,2]
[391251605,1760435309171,216.6,0.00012543,2]
[391251612,1760435431502,-216.6,0.00013088,2]
[391251613,1760435431512,-216.6,0.00013634,2]
[391251614,1760435431521,-216.6,0.00014179,2]
[391251615,1760435431531,-216.6,0.00014724,2]
[391251616,1760435431539,-216.6,0.0001527,2]
[391251617,1760435431549,-216.6,0.00015815,2]
[391251618,1760435431557,-216.6,0.0001636,2]
[391251619,1760435431567,-216.6,0.00016906,2]
[391251620,1760435431576,-216.6,0.00017451,2]
[391251621,1760435431585,-1580.80001826,0.00017641,2]
[391251622,1760435431596,-246.19998174,0.00017641,2]
[391251623,1760435431605,-684.0,0.00017676,2]
[391251624,1760435431614,-1703.0,0.00017712,2]
[391251625,1760435431624,-446.70145676,0.00017903,2]
[391251626,1760435431633,-216.6,0.00017996,2]
[391251627,1760435431642,-657.8395613,0.00018332,2]
[391251628,1760435431748,-142.1604387,0.00018332,2]
[391251629,1760435431757,-1015.0,0.00018368,2]
[391251630,1760435431767,-1759.0,0.00018405,2]
[391251631,1760435431776,-240.0,0.00018441,2]
[391251632,1760435431785,-300.0,0.00018477,2]
[391251633,1760435431794,-1200.0,0.00018477,2]
[391251634,1760435431804,-150.0,0.00018478,2]
[391251635,1760435431813,-1949.0,0.00018478,2]
[391251636,1760435431822,-150.0,0.00018515,2]
[391251637,1760435431831,-216.6,0.00018542,2]
[391251638,1760435431840,-514.76263559,0.00018551,2]
[391251639,1760435431867,-304.32741343,0.00018551,2]
[391251642,1760435431878,-634.90995098,0.00018551,2]
[391251644,1760435431888,-216.6,0.00019087,2]
[391251646,1760435431897,-216.6,0.00019632,2]
[391251647,1760435431907,-1490.16222773,0.0002,2]
[391251650,1760435431918,-234.83777227,0.0002,2]
[391251652,1760435431927,-300.21,0.0002,2]
[391251653,1760435431942,-300.92,0.0002,2]
[391251655,1760435431951,-305.31,0.0002,2]
[391251657,1760435431960,-304.96,0.0002,2]
[391251658,1760435431971,-303.03,0.0002,2]
[391251659,1760435431980,-287.0,0.00020151,2]
[391251660,1760435431990,-301.49,0.00020154,2]
[391251661,1760435431999,-216.6,0.00020178,2]
[391251662,1760435432009,-1598.0,0.00020249,2]
[391251664,1760435432019,-156.3940645,0.00020294,2]
[391251665,1760435432027,-4689.20816325,0.00020294,2]
[391251666,1760435432039,-422.52576524,0.00020294,2]
[391251667,1760435432050,-477.28868002,0.00020294,2]
[391251668,1760435432069,-559.45,0.00020294,2]
[391251669,1760435432080,-6815.12586,0.00020294,2]
[391251670,1760435432091,-12934.45639509,0.00020294,2]
[391251671,1760435432101,-554.45878487,0.0002059,2]
[391251672,1760435432110,-303.99,0.00020621,2]
[391251673,1760435432119,-216.6,0.00020723,2]
[391251674,1760435432128,-994.47457952,0.000211,2]
[391251675,1760435432139,-26645.44542048,0.000211,2]
[391251676,1760435432148,-200.82,0.00021188,3]
[391251677,1760435432158,-1074.01103452,0.00021249,2]
[391251678,1760435432169,-1121.39,0.00021292,2]
[391251679,1760435432179,-250.0,0.00021331,7]
[391251680,1760435432190,-9999.99,0.00021331,2]
[391251681,1760435432199,-7310.22,0.00021432,2]
[391251682,1760435432209,-300.28,0.00021435,2]
[391251683,1760435432218,-301.01,0.00021435,2]
[391251684,1760435432227,-475.40571922,0.00021503,2]
[391251685,1760435432238,-716.82464585,0.0002161,2]
[391251686,1760435432247,-166.66,0.00021663,2]
[391251687,1760435432257,-423.4199849,0.00021737,2]
[391251688,1760435432267,-301.0,0.000218,2]
[391251689,1760435432276,-835.0,0.000218,2]
[391251690,1760435432285,-401.6017,0.000219,2]
[391251691,1760435432295,-330.0,0.000219,3]
[391251692,1760435432306,-4891.92149504,0.00021943,2]
[391251693,1760435432327,-1196.59854322,0.00021943,2]
[391251694,1760435432336,-137.40145178,0.00021951,2]
[391251695,1760435432347,-121.59854822,0.00021951,2]
[391251696,1760435432357,-151.0,0.00021959,2]
[391251697,1760435432367,-170.38758707,0.00021959,2]
[391251698,1760435432379,-200.0,0.00021959,2]
[391251699,1760435432389,-151.0,0.00021959,2]
[391251700,1760435432398,-151.0,0.00021959,2]
[391251701,1760435432407,-151.0,0.00021959,2]
[391251702,1760435432416,-151.0,0.00021959,2]
[391251703,1760435432426,-151.0,0.00021959,2]
[391251704,1760435432439,-151.0,0.00021959,2]
[391251705,1760435432450,-151.0,0.00021959,2]
[391251706,1760435432459,-151.0,0.00021959,2]
[391251707,1760435432468,-151.0,0.00021959,2]
[391251708,1760435432477,-151.0,0.00021959,2]
[391251709,1760435432486,-151.0,0.00021959,2]
[391251710,1760435432496,-162.88643894,0.00021959,2]
[391251711,1760435432506,-721.12765535,0.00021959,2]
[391251712,1760435432515,-322.6107,0.00021959,2]
[391251713,1760435432525,-500.0,0.00021973,2]
[391251714,1760435432534,-500.0,0.00021973,2]
[391251715,1760435432544,-500.0,0.00021973,2]
[391251716,1760435432553,-989.38907042,0.00021973,2]
[391251717,1760435432564,-811.48492958,0.00021973,2]
[391251718,1760435432573,-98540.06342224,0.00022,4]
[391251719,1760435432634,-2817.91089343,0.00022,4]
[391251726,1760435437449,-28155.0,0.00022,4]
[391251727,1760435437503,-846.84633363,0.00022,4]
[391251728,1760435437514,-2228.29999997,0.00022,4]
[391251729,1760435437674,-559.4589,0.00022,4]
[391251730,1760435437686,-2981.55007633,0.00022,4]
[391251731,1760435437697,-1121.93484861,0.00022,4]
[391251732,1760435437707,-2766.4218021,0.00022,4]
[391251741,1760435441445,-3562.5345308,0.00022,4]
[391251742,1760435441457,-513.366,0.00022,4]
[391251743,1760435441469,-11163.924,0.00022,4]
[391251744,1760435441499,-558.05,0.00022,4]
[391251745,1760435441553,-5295.97844524,0.00022,4]
[391251746,1760435441564,-10560.1751446,0.00022,4]
[391251747,1760435441575,-8698.86999965,0.00022,4]
[391251748,1760435441660,-451.82950116,0.00022,4]
[391251766,1760435442570,-554.996498,0.00022,4]
[391251769,1760435442692,-183.11912878,0.00022,4]
[391251770,1760435442705,-292.04280029,0.00022,4]
[391251771,1760435442717,-24991.46459421,0.00022,4]
[391251777,1760435445901,-1116.8,0.00022,4]
[391251778,1760435476562,150.0,0.0002226,120]
[391251780,1760435500085,2492.0,0.0002739,120]
[391251781,1760435531252,-150.0,0.00018608,2]
[391251782,1760435668101,1928.43,0.00027397,120]
[391251783,1760435668723,1928.43,0.00027397,120]
[391251784,1760435668788,1928.43,0.00027397,120]
[391251785,1760435669042,1928.43,0.00027397,120]
[391251786,1760435669326,1928.43,0.00027397,120]
[391251787,1760435669563,1928.43,0.00027397,120]
[391251788,1760435669793,1928.43,0.00027397,120]
[391251789,1760435670028,1928.43,0.00027397,120]
[391251790,1760435670264,1928.43,0.00027397,120]
[391251791,1760435670580,1928.43,0.00027397,120]
[391251792,1760435670811,1928.43,0.00027397,120]
[391251793,1760435671045,1928.43,0.00027397,120]
[391251794,1760435671334,1928.43,0.00027397,120]
[391251795,1760435671590,1928.43,0.00027397,120]
[391251796,1760435671818,1928.43,0.00027397,120]
[391251797,1760435672269,1928.43,0.00027397,120]
[391251798,1760435672505,1928.43,0.00027397,120]
[391251799,1760435672773,1928.43,0.00027397,120]
[391251800,1760435673015,1928.43,0.00027397,120]
[391251801,1760435673281,1928.43,0.00027397,120]
[391251802,1760435673502,1928.43,0.00027397,120]
[391251803,1760435673734,1928.43,0.00027397,120]
[391251804,1760435673972,1928.43,0.00027397,120]
[391251805,1760435674258,1928.59613629,0.00027397,120]
[391251832,1760436246259,-300.0,0.00012999,2]
[391251833,1760436246280,-500.21443023,0.00013,2]
[391251834,1760436282691,17373.9,0.00012,2]
[391251841,1760436631696,-150.0,0.00018455,2]
[391251842,1760436631711,-150.0,0.00018461,2]
[391251843,1760436631721,-164.78858407,0.00018608,2]
[391251844,1760436631736,-150.0,0.00019677,2]
[391251845,1760436631746,-150.0,0.00019677,2]
[391251846,1760436631756,-150.0,0.00019677,2]
[391251847,1760436631768,-150.0,0.00019677,2]
[391251848,1760436631779,-152.73589895,0.00019677,2]
[391251849,1760436631788,-597.78578969,0.00020159,2]
[391251850,1760436631798,-150.0,0.00020223,4]
[391251851,1760436631809,-303.58,0.00020225,2]
[391251852,1760436631819,-195.0,0.00020301,2]
[391251853,1760436631830,-300.0,0.0002032,2]
[391251854,1760436631840,-200.0,0.00020321,2]
[391251855,1760436631851,-9999.99,0.00020321,2]
[391251856,1760436631864,-150.0,0.00020351,2]
[391251857,1760436631874,-479.0,0.00020396,2]
[391251858,1760436631884,-610.0,0.0002044,2]
[391251859,1760436631894,-1725.0,0.000205,2]
[391251860,1760436631903,-1318.64,0.00020623,2]
[391251861,1760436631913,-150.0,0.0002077,4]
[391251862,1760436631923,-150.0,0.0002077,4]
[391251863,1760436631932,-417.27,0.00020895,2]
[391251864,1760436631943,-300.33,0.0002094,2]
[391251865,1760436631953,-302.87,0.0002094,2]
[391251867,1760436631963,-303.98,0.0002094,2]
[391251868,1760436631972,-305.9,0.0002094,2]
[391251869,1760436631982,-255.0,0.00020941,2]
[391251870,1760436631992,-430.45,0.00020941,2]
[391251871,1760436632001,-302.42,0.00020941,2]
[391251872,1760436632011,-302.53,0.00020941,2]
[391251874,1760436632020,-300.26,0.00020941,2]
[391251876,1760436632030,-302.49,0.00020941,2]
[391251878,1760436632039,-300.27,0.00020941,2]
[391251879,1760436632049,-304.99,0.00020941,2]
[391251880,1760436632059,-303.13,0.00020941,2]
[391251881,1760436632068,-431.92,0.00020941,2]
[391251882,1760436632077,-437.81,0.00020941,2]
[391251883,1760436632087,-427.5,0.00020941,2]
[391251884,1760436632104,-303.42,0.00020941,2]
[391251885,1760436632117,-303.84,0.00020941,2]
[391251886,1760436632127,-438.55,0.00020942,2]
[391251887,1760436632137,-443.45,0.00020942,2]
[391251888,1760436632147,-428.6,0.00020942,2]
[391251889,1760436632157,-439.61,0.00020942,2]
[391251890,1760436632166,-300.06,0.00020942,2]
[391251891,1760436632176,-434.11,0.00020942,2]
[391251892,1760436632186,-301.63,0.00020942,2]
[391251893,1760436632196,-435.89,0.00020942,2]
[391251894,1760436632207,-434.91,0.00020942,2]
[391251895,1760436632216,-428.29,0.00020942,2]
[391251896,1760436632226,-444.7,0.00020942,2]
[391251897,1760436632235,-301.69,0.00020942,2]
[391251898,1760436632246,-427.99,0.00020942,2]
[391251899,1760436632255,-443.1,0.00020942,2]
[391251900,1760436632265,-434.08,0.00020942,2]
[391251901,1760436632275,-442.45,0.00020942,2]
[391251902,1760436632285,-301.85,0.00020942,2]
[391251903,1760436632745,-438.7,0.00020942,2]
[391251904,1760436632756,-442.63,0.00020942,2]
[391251905,1760436632766,-427.81,0.00020942,2]
[391251906,1760436632777,-301.71,0.00020942,2]
[391251907,1760436632786,-305.67,0.00020942,2]
[391251908,1760436632795,-2650.86,0.00021035,2]
[391251909,1760436632805,-1000.0,0.00021091,2]
[391251910,1760436632815,-167.74,0.00021186,2]
[391251911,1760436632824,-150.0,0.00021316,4]
[391251912,1760436632834,-1000.0,0.00021527,2]
[391251913,1760436632844,-322.6107,0.00021527,2]
[391251914,1760436632853,-500.0,0.00021527,2]
[391251915,1760436632863,-257.91778498,0.00021527,2]
[391251916,1760436632871,-204.7145136,0.00021527,2]
[391251917,1760436632881,-475.40571922,0.00021592,2]
[391251918,1760436632890,-1786.104,0.00021592,2]
[391251919,1760436632899,-716.82464584,0.00021657,2]
[391251920,1760436632909,-1002.26113602,0.00021672,2]
[391251921,1760436632918,-556.0,0.00021673,2]
[391251922,1760436632928,-4014.0,0.00021673,2]
[391251923,1760436632937,-6442.0,0.00021673,2]
[391251924,1760436632946,-3081.0,0.00021673,2]
[391251925,1760436632958,-1866.61373697,0.000217,3]
[391251926,1760436632967,-33106.1918,0.00021718,2]
[391251927,1760436632976,-265.04337206,0.0002177,2]
[391251928,1760436632986,-1866.61373696,0.00021779,3]
[391251929,1760436632995,-5495.58987441,0.0002178,2]
[391251930,1760436633005,-213.72604761,0.0002178,2]
[391251931,1760436633015,-396.67525831,0.0002178,2]
[391251932,1760436633025,-250.25713697,0.0002178,4]
[391251933,1760436633035,-996.45148009,0.0002178,2]
[391251934,1760436633046,-1332.34053936,0.0002178,2]
[391251935,1760436633055,-665.31974085,0.0002178,2]
[391251936,1760436633065,-160.63425148,0.0002178,2]
[391251937,1760436633075,-5495.58987438,0.00021784,2]
[391251938,1760436633085,-5495.58987438,0.00021788,2]
[391251939,1760436633095,-5495.58987438,0.00021793,2]
[391251940,1760436633105,-4646.47096412,0.00021797,2]
[391251941,1760436633615,-703.30648061,0.00021797,2]
[391251942,1760436633627,-145.81242965,0.00021797,2]
[391251943,1760436633636,-200.0,0.00021797,2]
[391251944,1760436633646,-20000.0,0.000218,2]
[391251945,1760436633655,-5495.58987438,0.00021801,2]
[391251946,1760436633664,-5495.58987438,0.00021805,2]
[391251947,1760436633674,-5495.58987438,0.0002181,2]
[391251948,1760436633683,-5495.58987438,0.00021814,2]
[391251949,1760436633692,-151.0,0.00021815,2]
[391251950,1760436633703,-793.25810854,0.00021818,2]
[391251951,1760436633712,-5495.58987438,0.00021818,2]
[391251952,1760436633722,-150.0,0.00021863,4]
[391251953,1760436633733,-150.00000001,0.00021863,4]
[391251954,1760436633743,-154.12747994,0.00021863,4]
[391251955,1760436633752,-500.0,0.00021873,2]
[391251956,1760436633761,-41961.76606542,0.00021878,2]
[391251957,1760436633773,-34441.9771738,0.00021878,2]
[391251958,1760436633788,-398.91000001,0.00021878,2]
[391251959,1760436633799,-1784.9832,0.00021878,2]
[391251960,1760436633810,-2607.36466766,0.00021878,2]
[391251961,1760436637651,-166.66,0.00020353,2]
[391251962,1760436637660,-52435.63209795,0.0002178,2]
[391251963,1760436637669,-17452.49465789,0.00021878,2]
[391251964,1760436637859,-166.66,0.00020781,2]
[391251965,1760436637868,-3587.30984119,0.00021878,2]
[391251966,1760436637879,-3361.41447205,0.00021878,2]
[391251978,1760436639809,-166.66,0.0002121,2]
[391251979,1760436639819,-166.66,0.00021638,2]
[391251980,1760436639830,-64532.44396143,0.00021878,2]
[391251981,1760436639841,-35755.8687072,0.00021878,2]
[391251982,1760436639852,-6667.48097197,0.00021878,2]
[391251983,1760436639871,-205992.79999877,0.00021878,2]
[391251984,1760436640018,-2033.85313534,0.00021878,2]
[391251985,1760436640072,-4672.40176,0.00021878,2]
[391251986,1760436640083,-1162.31644101,0.00021878,2]
[391251996,1760436642965,-619.4552965,0.00021673,2]
[391251997,1760436642976,-281.5447035,0.00021673,2]
[391251998,1760436642986,-186.91036812,0.00021868,2]
[391251999,1760436642995,-813.44814163,0.00021878,2]
[391252000,1760436643119,-111552.30600001,0.00021878,2]
[391252001,1760436643132,-346.4546635,0.00021878,2]
[391252002,1760436645731,-10929.99423507,0.00021878,2]
[391252003,1760436645836,-10115.90413208,0.00021878,2]
[391252004,1760436645890,-332.4,0.00021878,2]
[391252005,1760436645902,-459.62,0.00021878,2]
[391252006,1760436645945,-3869.65180261,0.00021878,2]
[391252231,1760437187297,10000.0,0.00027397,120]
[391252244,1760437777405,719.0,0.00027397,120]
[391252287,1760437831906,-178.0,0.00013698,2]
[391252289,1760437831916,-207.33278562,0.00013699,2]
[391252290,1760437831960,-83.37721438,0.00013699,2]
[391252291,1760437831969,-1181.54655407,0.00013699,2]
[391252292,1760437831978,-803.44724121,0.000148,2]
[391252293,1760437831987,-1200.0,0.00014999,2]
[391252294,1760437831996,-7852.62899034,0.00015,2]
[391252295,1760437832018,-28483.3321185,0.00015,2]
[391252296,1760437832027,-500.0,0.00015,2]
[391252297,1760437832036,-761.60223052,0.00015068,2]
[391252298,1760437832046,-1200.0,0.00016499,2]
[391252299,1760437832060,-1004.13099059,0.00018283,2]
[391252300,1760437832069,-162.0,0.00019,3]
[391252301,1760437832078,-290.71,0.00020187,2]
[391252302,1760437832086,-9877.46029681,0.00020187,2]
[391252303,1760437832099,-122.52970319,0.00020187,2]
[391252304,1760437832108,-250.0,0.00020506,7]
[391252305,1760437832117,-250.0,0.00020636,2]
[391252306,1760437832127,-609.23759681,0.00020658,2]
[391252307,1760437832139,-2369.89240319,0.00020658,2]